{"text_format":"3","workbook":"xlsx","n_sheets":1,"sheets":["Raamatukoguraamatute laenutus"],"not_rendered":{"defined_names":4},"read":"whole","date_system":"1900"}

{"sheet":"Raamatukoguraamatute laenutus","index":0,"n_rows":9,"n_cols":8,"rows_kept":9,"merged":[[0,1,0,4],[0,5,0,6]]}
[null,"Raamatukoguraamatute laenutusleht",{"$nulls":3},"TAGASTUSENI JÄÄNUD: ",null,10]
["Tähtaja ületanud","ÕPPUR","MEILIAADRESS","TELEFON","RAAMATU PEALKIRI","LAENUTUSKUUPÄEV","TAGASTUSKUUPÄEV","PÄEVA"]
[{"$f":"IFERROR(((Raamatud[[#This Row],[LAENUTUSKUUPÄEV]]+Päevalimiit)<TODAY())*(LEN(Raamatud[[#This Row],[TAGASTUSKUUPÄEV]])=0)*(LEN(Raamatud[[#This Row],[LAENUTUSKUUPÄEV]])>0),0)","v":0},"Kersti Kasesalu","keegi@example.com","1234 5678","Väike maja preerias",{"$f":"DATE(YEAR(TODAY()),1,14)","v":"2018-01-14"},{"$f":"DATE(YEAR(TODAY()),1,21)","v":"2018-01-21"},{"$f":"IFERROR(IF(Raamatud[[#This Row],[TAGASTUSKUUPÄEV]]=\"\",IF(Raamatud[[#This Row],[LAENUTUSKUUPÄEV]]<>\"\", TODAY()-Raamatud[[#This Row],[LAENUTUSKUUPÄEV]],\"\"),Raamatud[[#This Row],[TAGASTUSKUUPÄEV]]-Raamatud[[#This Row],[LAENUTUSKUUPÄEV]]), \"\")","v":7}]
[{"$f":"IFERROR(((Raamatud[[#This Row],[LAENUTUSKUUPÄEV]]+Päevalimiit)<TODAY())*(LEN(Raamatud[[#This Row],[TAGASTUSKUUPÄEV]])=0)*(LEN(Raamatud[[#This Row],[LAENUTUSKUUPÄEV]])>0),0)","v":0},"Ergo Raud","keegi@example.com","2345 6789","Charlotte koob võrku",{"$f":"DATE(YEAR(TODAY()),2,15)","v":"2018-02-15"},{"$f":"DATE(YEAR(TODAY()),2,18)","v":"2018-02-18"},{"$f":"IFERROR(IF(Raamatud[[#This Row],[TAGASTUSKUUPÄEV]]=\"\",IF(Raamatud[[#This Row],[LAENUTUSKUUPÄEV]]<>\"\", TODAY()-Raamatud[[#This Row],[LAENUTUSKUUPÄEV]],\"\"),Raamatud[[#This Row],[TAGASTUSKUUPÄEV]]-Raamatud[[#This Row],[LAENUTUSKUUPÄEV]]), \"\")","v":3}]
[{"$f":"IFERROR(((Raamatud[[#This Row],[LAENUTUSKUUPÄEV]]+Päevalimiit)<TODAY())*(LEN(Raamatud[[#This Row],[TAGASTUSKUUPÄEV]])=0)*(LEN(Raamatud[[#This Row],[LAENUTUSKUUPÄEV]])>0),0)","v":0},"Harri Kalda","keegi@example.com","3456 7890","Sipsik",{"$f":"DATE(YEAR(TODAY()),2,17)","v":"2018-02-17"},{"$f":"DATE(YEAR(TODAY()),2,22)","v":"2018-02-22"},{"$f":"IFERROR(IF(Raamatud[[#This Row],[TAGASTUSKUUPÄEV]]=\"\",IF(Raamatud[[#This Row],[LAENUTUSKUUPÄEV]]<>\"\", TODAY()-Raamatud[[#This Row],[LAENUTUSKUUPÄEV]],\"\"),Raamatud[[#This Row],[TAGASTUSKUUPÄEV]]-Raamatud[[#This Row],[LAENUTUSKUUPÄEV]]), \"\")","v":5}]
[{"$f":"IFERROR(((Raamatud[[#This Row],[LAENUTUSKUUPÄEV]]+Päevalimiit)<TODAY())*(LEN(Raamatud[[#This Row],[TAGASTUSKUUPÄEV]])=0)*(LEN(Raamatud[[#This Row],[LAENUTUSKUUPÄEV]])>0),0)","v":0},"Reigo Lepp","keegi@example.com","4567 8901","Väike nõid",{"$f":"DATE(YEAR(TODAY()),2,17)","v":"2018-02-17"},{"$f":"DATE(YEAR(TODAY()),2,25)","v":"2018-02-25"},{"$f":"IFERROR(IF(Raamatud[[#This Row],[TAGASTUSKUUPÄEV]]=\"\",IF(Raamatud[[#This Row],[LAENUTUSKUUPÄEV]]<>\"\", TODAY()-Raamatud[[#This Row],[LAENUTUSKUUPÄEV]],\"\"),Raamatud[[#This Row],[TAGASTUSKUUPÄEV]]-Raamatud[[#This Row],[LAENUTUSKUUPÄEV]]), \"\")","v":8}]
[{"$f":"IFERROR(((Raamatud[[#This Row],[LAENUTUSKUUPÄEV]]+Päevalimiit)<TODAY())*(LEN(Raamatud[[#This Row],[TAGASTUSKUUPÄEV]])=0)*(LEN(Raamatud[[#This Row],[LAENUTUSKUUPÄEV]])>0),0)","v":0},"Aada Saar","keegi@example.com","1234 6789","Matilda",{"$f":"DATE(YEAR(TODAY()),2,18)","v":"2018-02-18"},{"$f":"DATE(YEAR(TODAY()),2,28)","v":"2018-02-28"},{"$f":"IFERROR(IF(Raamatud[[#This Row],[TAGASTUSKUUPÄEV]]=\"\",IF(Raamatud[[#This Row],[LAENUTUSKUUPÄEV]]<>\"\", TODAY()-Raamatud[[#This Row],[LAENUTUSKUUPÄEV]],\"\"),Raamatud[[#This Row],[TAGASTUSKUUPÄEV]]-Raamatud[[#This Row],[LAENUTUSKUUPÄEV]]), \"\")","v":10}]
[{"$f":"IFERROR(((Raamatud[[#This Row],[LAENUTUSKUUPÄEV]]+Päevalimiit)<TODAY())*(LEN(Raamatud[[#This Row],[TAGASTUSKUUPÄEV]])=0)*(LEN(Raamatud[[#This Row],[LAENUTUSKUUPÄEV]])>0),0)","v":1},"Helen Karu","keegi@example.com","1234 7890","Narnia kroonikad",{"$f":"DATE(YEAR(TODAY()),1,23)","v":"2018-01-23"},null,{"$f":"IFERROR(IF(Raamatud[[#This Row],[TAGASTUSKUUPÄEV]]=\"\",IF(Raamatud[[#This Row],[LAENUTUSKUUPÄEV]]<>\"\", TODAY()-Raamatud[[#This Row],[LAENUTUSKUUPÄEV]],\"\"),Raamatud[[#This Row],[TAGASTUSKUUPÄEV]]-Raamatud[[#This Row],[LAENUTUSKUUPÄEV]]), \"\")","v":164}]
[{"$f":"IFERROR(((Raamatud[[#This Row],[LAENUTUSKUUPÄEV]]+Päevalimiit)<TODAY())*(LEN(Raamatud[[#This Row],[TAGASTUSKUUPÄEV]])=0)*(LEN(Raamatud[[#This Row],[LAENUTUSKUUPÄEV]])>0),0)","v":0},"Aino Rebane","keegi@example.com","1234 5432","Vanaema õunapuu otsas",{"$f":"TODAY()","v":"2018-07-06"},null,{"$f":"IFERROR(IF(Raamatud[[#This Row],[TAGASTUSKUUPÄEV]]=\"\",IF(Raamatud[[#This Row],[LAENUTUSKUUPÄEV]]<>\"\", TODAY()-Raamatud[[#This Row],[LAENUTUSKUUPÄEV]],\"\"),Raamatud[[#This Row],[TAGASTUSKUUPÄEV]]-Raamatud[[#This Row],[LAENUTUSKUUPÄEV]]), \"\")","v":0}]